bitfinex-derivatives/quotes_BTCF0:USTF0_20260221
["timestamp","ask_amount","ask_price","bid_price","bid_amount"]
[1771656563668,0.05806003,67810.0,67796.0,0.26690816]
[1771656563965,0.014754,67798.0,67796.0,0.26690816]
[1771656564368,0.014753,67801.0,67796.0,0.28166216]
[1771656564561,0.014753,67802.0,67796.0,0.26690816]
[1771656564864,0.014753,67801.0,67796.0,0.26690816]
[1771656565060,0.029508,67798.0,67796.0,0.26690816]
[1771656566364,0.014754,67798.0,67796.0,0.26690816]
[1771656566670,0.029508,67798.0,67796.0,0.26690816]
[1771656568771,0.014754,67797.0,67796.0,0.26690816]
[1771656569075,0.014754,67798.0,67796.0,0.26690816]
[1771656570073,0.014754,67797.0,67796.0,0.26690816]
[1771656570473,0.014754,67796.0,67790.0,0.014755]
[1771656571177,0.014754,67796.0,67792.0,0.014755]
[1771656572772,0.014754,67795.0,67792.0,0.014755]
[1771656573679,0.014754,67796.0,67792.0,0.014755]
[1771656578268,0.014754,67796.0,67791.0,0.014755]
[1771656578672,0.014755,67791.0,67787.0,0.014756]
[1771656578880,0.014755,67792.0,67787.0,0.014756]
[1771656579174,0.014755,67792.0,67786.0,0.014756]
[1771656579175,0.014755,67791.0,67786.0,0.014756]
[1771656579478,0.014755,67792.0,67786.0,0.014756]
[1771656579780,0.014755,67792.0,67784.0,0.014757]
[1771656579781,0.014756,67789.0,67784.0,0.014757]
[1771656580076,0.014755,67791.0,67785.0,0.014756]
[1771656580276,0.014755,67790.0,67785.0,0.014756]
[1771656580776,0.014755,67790.0,67786.0,0.014756]
[1771656581378,0.014755,67791.0,67786.0,0.014756]
[1771656581673,0.014755,67790.0,67786.0,0.014756]
[1771656581971,0.014755,67791.0,67786.0,0.014756]
[1771656582177,0.014755,67792.0,67787.0,0.014756]
[1771656582383,0.014755,67793.0,67788.0,0.014756]
[1771656582569,0.014754,67794.0,67788.0,0.014756]
[1771656582877,0.014755,67792.0,67788.0,0.014756]
[1771656588381,0.014755,67792.0,67787.0,0.014756]
[1771656588980,0.014755,67791.0,67787.0,0.014756]
[1771656589174,0.014755,67791.0,67786.0,0.014756]
[1771656590481,0.014756,67788.0,67784.0,0.014757]
[1771656590680,0.014756,67788.0,67781.0,0.014757]
[1771656590883,0.029512,67788.0,67783.0,0.014757]
[1771656591377,0.014756,67787.0,67783.0,0.014757]
[1771656591573,0.014756,67788.0,67782.0,0.014757]
[1771656591778,0.014756,67788.0,67783.0,0.014757]
[1771656593585,0.014756,67789.0,67784.0,0.014757]
[1771656594085,0.014756,67788.0,67782.0,0.014757]
[1771656594286,0.014756,67787.0,67782.0,0.014757]
[1771656594486,0.014756,67788.0,67783.0,0.014757]
[1771656595586,0.014756,67787.0,67782.0,0.014757]
[1771656595976,0.014755,67791.0,67784.0,0.014757]
[1771656596180,0.014755,67791.0,67785.0,0.014756]
[1771656596376,0.014754,67795.0,67787.0,0.014756]
[1771656596582,0.014755,67791.0,67786.0,0.014756]
[1771656597381,0.014754,67795.0,67786.0,0.014756]
[1771656598084,0.014754,67795.0,67788.0,0.014756]
[1771656599389,0.014754,67795.0,67790.0,0.014755]
[1771656599790,0.014754,67795.0,67791.0,0.014755]
[1771656599988,0.014754,67796.0,67787.0,0.014756]
[1771656599989,0.014755,67794.0,67789.0,0.014756]
[1771656600181,0.014755,67793.0,67789.0,0.014756]
[1771656601089,0.014755,67793.0,67790.0,0.014755]
[1771656601990,0.014755,67794.0,67790.0,0.014755]
[1771656603290,0.014755,67792.0,67788.0,0.014756]
[1771656605307,0.014755,67791.0,67788.0,0.014756]
[1771656607310,0.014755,67790.0,67787.0,0.014756]
[1771656608211,0.014754,67795.0,67790.0,0.014755]
[1771656608510,0.014755,67794.0,67789.0,0.014755]
[1771656608707,0.02951,67794.0,67789.0,0.014755]
[1771656608911,0.014755,67793.0,67789.0,0.014755]
[1771656609113,0.014755,67793.0,67788.0,0.014756]
[1771656610213,0.014755,67792.0,67787.0,0.014756]
[1771656613421,0.014754,67795.0,67789.0,0.014755]
[1771656614424,0.014754,67795.0,67790.0,0.014755]
[1771656619428,0.014754,67795.0,67786.0,0.014756]
[1771656619429,0.014755,67793.0,67787.0,0.029512]
[1771656619929,0.014755,67793.0,67788.0,0.014756]
[1771656626232,0.1811746,67810.0,67789.0,0.014755]
[1771656626535,0.014754,67798.0,67793.0,0.014755]
[1771656626933,0.014753,67799.0,67793.0,0.014755]
[1771656627429,0.014753,67799.0,67794.0,0.014754]
[1771656628427,0.014753,67800.0,67794.0,0.014754]
[1771656628627,0.014753,67802.0,67790.0,0.1959296]
[1771656628827,0.014752,67805.0,67800.0,0.014753]
[1771656629027,0.014752,67806.0,67800.0,0.014753]
[1771656629938,0.014752,67806.0,67801.0,0.014753]
[1771656630128,0.014752,67806.0,67800.0,0.014753]
[1771656631229,0.014752,67807.0,67802.0,0.014753]
[1771656631440,0.014752,67806.0,67801.0,0.014753]
[1771656632430,0.014751,67811.0,67804.0,0.014752]
[1771656632636,0.014748,67823.0,67801.0,0.199805]
[1771656632934,0.20803871,67827.0,67812.0,0.014751]
[1771656632935,0.01475,67817.0,67812.0,0.014751]
[1771656633138,0.014749,67818.0,67813.0,0.01475]
[1771656633538,0.0428141,67822.0,67814.0,0.01475]
[1771656633739,0.014749,67819.0,67814.0,0.01475]
[1771656636232,0.014749,67820.0,67814.0,0.01475]
[1771656636835,0.014749,67819.0,67813.0,0.01475]
[1771656637131,0.014749,67818.0,67812.0,0.014751]
[1771656637330,0.014749,67818.0,67813.0,0.01475]
[1771656637726,0.014749,67819.0,67813.0,0.01475]
[1771656638633,0.014749,67819.0,67814.0,0.01475]
[1771656640243,0.014749,67819.0,67813.0,0.01475]
[1771656642538,0.014749,67818.0,67813.0,0.01475]
[1771656644642,0.01475,67817.0,67811.0,0.014751]
[1771656644840,0.01475,67816.0,67811.0,0.014751]
[1771656645140,0.01475,67816.0,67810.0,0.014751]
[1771656645448,0.01475,67816.0,67811.0,0.014751]
[1771656647352,0.014749,67818.0,67812.0,0.01475]
[1771656649048,0.014749,67818.0,67813.0,0.01475]
[1771656649752,0.014749,67818.0,67812.0,0.014751]
[1771656649753,0.01475,67817.0,67812.0,0.014751]
[1771656650956,0.01475,67817.0,67811.0,0.014751]
[1771656651155,0.01475,67817.0,67812.0,0.014751]
[1771656651455,0.0295,67817.0,67811.0,0.014751]
[1771656651858,0.01475,67817.0,67812.0,0.014751]
[1771656652648,0.0295,67817.0,67812.0,0.014751]
[1771656653549,0.01475,67817.0,67812.0,0.014751]
[1771656653749,0.01475,67817.0,67811.0,0.014751]
[1771656654658,0.01475,67817.0,67811.0,0.029502]
[1771656655058,0.014749,67818.0,67812.0,0.014751]
[1771656655858,0.014749,67820.0,67814.0,0.01475]
[1771656656046,0.014749,67819.0,67814.0,0.01475]
[1771656658555,0.014749,67818.0,67813.0,0.01475]
[1771656658755,0.01475,67817.0,67812.0,0.014751]
[1771656659164,0.014749,67820.0,67808.0,0.26921654]
[1771656659165,0.01475,67815.0,67810.0,0.014751]
[1771656659346,0.01475,67816.0,67810.0,0.029502]
[1771656660664,0.01475,67816.0,67811.0,0.014751]
[1771656666260,0.01475,67817.0,67811.0,0.014751]
[1771656667166,0.01475,67817.0,67812.0,0.01475]
[1771656667366,0.014749,67818.0,67812.0,0.01475]
[1771656667565,0.014749,67818.0,67812.0,0.0295]
[1771656668564,0.014749,67818.0,67813.0,0.01475]
[1771656671255,0.014749,67822.0,67816.0,0.01475]
[1771656671461,0.014748,67824.0,67818.0,0.014749]
[1771656672163,0.014748,67824.0,67818.0,0.029498]
[1771656672364,0.014748,67824.0,67818.0,0.014749]
[1771656672566,0.014748,67824.0,67818.0,0.029498]
[1771656672762,0.014748,67824.0,67819.0,0.014749]
[1771656673574,0.029496,67824.0,67819.0,0.014749]
[1771656673763,0.014748,67825.0,67821.0,0.014749]
[1771656674065,0.029496,67825.0,67821.0,0.014749]
[1771656674272,0.014748,67824.0,67820.0,0.014749]
[1771656674471,0.014748,67824.0,67821.0,0.014749]
[1771656676074,0.014748,67824.0,67820.0,0.014749]
[1771656676872,0.014748,67824.0,67819.0,0.014749]
[1771656677170,0.014748,67824.0,67820.0,0.014749]
[1771656682571,0.029496,67824.0,67820.0,0.014749]
[1771656683177,0.014748,67823.0,67820.0,0.014749]
[1771656683577,0.014748,67824.0,67820.0,0.014749]
[1771656685689,0.014748,67824.0,67820.0,0.029498]
[1771656685986,0.014748,67824.0,67820.0,0.014749]
[1771656686191,0.014748,67823.0,67820.0,0.014749]
[1771656688192,0.014748,67824.0,67820.0,0.014749]
[1771656688390,0.029496,67824.0,67820.0,0.014749]
[1771656688591,0.014748,67823.0,67820.0,0.014749]
[1771656689288,0.014748,67823.0,67819.0,0.014749]
[1771656689488,0.014748,67823.0,67819.0,0.029498]
[1771656690594,0.014748,67823.0,67819.0,0.014749]
[1771656693296,0.014747,67829.0,67820.0,0.014749]
[1771656693494,0.029496,67826.0,67822.0,0.014748]
[1771656693999,0.014748,67825.0,67822.0,0.014748]
[1771656697198,0.014748,67825.0,67821.0,0.014749]
[1771656697392,0.01474696,67834.0,67820.0,0.014749]
[1771656697393,0.014748,67824.0,67820.0,0.014749]
[1771656697591,0.014748,67823.0,67820.0,0.014749]
[1771656702712,0.014748,67823.0,67819.0,0.029498]
[1771656703011,0.014748,67823.0,67819.0,0.014749]
[1771656703611,0.014748,67823.0,67820.0,0.014749]
[1771656705010,0.014748,67824.0,67820.0,0.014749]
[1771656706405,0.029496,67824.0,67820.0,0.014749]
[1771656707113,0.014748,67823.0,67820.0,0.014749]
[1771656713214,0.014748,67823.0,67816.0,0.01475]
[1771656713411,0.014749,67820.0,67810.0,0.014751]
[1771656713617,0.014749,67820.0,67816.0,0.01475]
[1771656714217,0.014749,67820.0,67815.0,0.01475]
[1771656718018,0.014749,67820.0,67816.0,0.01475]
[1771656718820,0.014749,67821.0,67816.0,0.01475]
[1771656719015,0.014749,67821.0,67816.0,0.0295]
[1771656719419,0.014749,67821.0,67817.0,0.014749]
[1771656719618,0.014749,67822.0,67817.0,0.014749]
[1771656721324,0.014749,67821.0,67817.0,0.014749]
[1771656728440,0.014749,67822.0,67817.0,0.014749]
[1771656729040,0.029498,67822.0,67817.0,0.014749]
[1771656729843,0.029498,67822.0,67815.0,0.01475]
[1771656730044,0.029498,67822.0,67817.0,0.014749]
[1771656731242,0.014749,67821.0,67817.0,0.014749]
[1771656731640,0.014749,67821.0,67814.0,0.01475]
[1771656732044,0.014749,67821.0,67816.0,0.01475]
[1771656733346,0.014749,67821.0,67817.0,0.014749]
[1771656735348,0.014749,67821.0,67816.0,0.01475]
[1771656735746,0.014749,67821.0,67817.0,0.014749]
[1771656739458,0.014749,67822.0,67817.0,0.014749]
[1771656739951,0.014749,67822.0,67814.0,0.01475]
[1771656740159,0.01475,67816.0,67811.0,0.014751]
[1771656740351,0.01475,67816.0,67809.0,0.014751]
[1771656740657,0.01475,67816.0,67811.0,0.014751]
[1771656741957,0.01475,67815.0,67808.0,0.20346354]
[1771656742161,0.01475,67813.0,67806.0,0.014752]
[1771656742361,0.01475,67814.0,67808.0,0.014751]
[1771656742558,0.01475,67814.0,67809.0,0.014751]
[1771656748162,0.01475,67815.0,67809.0,0.014751]
[1771656751865,0.01475,67815.0,67810.0,0.014751]
[1771656757765,0.01475,67816.0,67811.0,0.014751]
[1771656761466,0.01475,67816.0,67810.0,0.014751]
[1771656761668,0.01475,67815.0,67810.0,0.014751]
[1771656782684,0.20491083,67832.0,67806.0,0.18236492]
[1771656782885,0.014747,67829.0,67823.0,0.014748]
[1771656783790,0.014747,67828.0,67822.0,0.014748]
[1771656783979,0.014747,67827.0,67822.0,0.014748]
[1771656784588,0.014747,67828.0,67823.0,0.014748]
[1771656784788,0.014747,67827.0,67823.0,0.014748]
[1771656784989,0.014747,67828.0,67824.0,0.014748]
[1771656785782,0.014747,67827.0,67822.0,0.014748]
[1771656785983,0.014747,67827.0,67823.0,0.014748]
[1771656787085,0.014748,67825.0,67821.0,0.014749]
[1771656787285,0.014748,67825.0,67822.0,0.014748]
[1771656787479,0.014748,67827.0,67823.0,0.014748]
[1771656790390,0.029496,67827.0,67823.0,0.014748]
[1771656791489,0.014748,67826.0,67823.0,0.014748]
[1771656797201,0.014748,67826.0,67822.0,0.014748]
[1771656798903,0.014748,67825.0,67822.0,0.014748]
[1771656799999,0.014748,67826.0,67823.0,0.014748]
[1771656800207,0.014748,67825.0,67822.0,0.014748]
[1771656805897,0.014748,67825.0,67821.0,0.014749]
[1771656807712,0.029496,67825.0,67821.0,0.014749]
[1771656808309,0.014748,67825.0,67821.0,0.014749]
[1771656809513,0.014748,67824.0,67821.0,0.014749]
[1771656817322,0.014748,67824.0,67817.0,0.26825982]
[1771656817323,0.014749,67822.0,67818.0,0.014749]
[1771656817514,0.014749,67821.0,67818.0,0.014749]
[1771656818218,0.014749,67821.0,67817.0,0.014749]
[1771656820623,0.014749,67822.0,67817.0,0.014749]
[1771656823216,0.014748,67823.0,67817.0,0.014749]
[1771656823421,0.014748,67824.0,67817.0,0.014749]
[1771656823827,0.014748,67824.0,67818.0,0.014749]
[1771656824420,0.014748,67824.0,67820.0,0.014749]
[1771656825424,0.014748,67826.0,67820.0,0.014749]
[1771656825629,0.014748,67826.0,67820.0,0.029498]
[1771656825928,0.014748,67826.0,67821.0,0.014749]
[1771656826528,0.014748,67826.0,67823.0,0.014748]
[1771656829318,0.014748,67824.0,67821.0,0.014749]
[1771656832230,0.014748,67824.0,67819.0,0.014749]
[1771656833331,0.029496,67823.0,67819.0,0.014749]
[1771656834634,0.014748,67823.0,67819.0,0.014749]
[1771656836227,0.014748,67822.0,67819.0,0.014749]
[1771656837435,0.014748,67825.0,67820.0,0.014749]
[1771656838033,0.014748,67825.0,67820.0,0.029498]
[1771656838737,0.014748,67825.0,67821.0,0.014749]
[1771656840644,0.014748,67824.0,67821.0,0.014748]
[1771656840837,0.014748,67824.0,67820.0,0.014749]
[1771656841342,0.014748,67825.0,67822.0,0.014748]
[1771656843249,0.014748,67825.0,67819.0,0.014749]
[1771656844144,0.014748,67826.0,67819.0,0.014749]
[1771656844447,0.014748,67825.0,67819.0,0.029498]
[1771656845047,0.014748,67824.0,67819.0,0.014749]
[1771656845248,0.014748,67823.0,67819.0,0.014749]
[1771656847158,0.014748,67822.0,67819.0,0.014749]
[1771656849263,0.014748,67822.0,67818.0,0.014749]
[1771656856766,0.014748,67822.0,67817.0,0.014749]
[1771656858064,0.014749,67821.0,67817.0,0.014749]
[1771656859764,0.014749,67818.0,67813.0,0.01475]
[1771656859966,0.01475,67814.0,67809.0,0.014751]
[1771656861971,0.01475,67814.0,67808.0,0.26889158]
[1771656861972,0.014749,67819.0,67808.0,0.014751]
[1771656862170,0.01475,67813.0,67808.0,0.014751]
[1771656862373,0.01475,67813.0,67809.0,0.014751]
[1771656862671,0.01475,67814.0,67809.0,0.014751]
[1771656863969,0.18101815,67820.0,67806.0,0.014752]
[1771656863970,0.014751,67812.0,67807.0,0.014751]
[1771656864374,0.014751,67812.0,67808.0,0.014751]
[1771656864678,0.014751,67810.0,67802.0,0.45598404]
[1771656864880,0.01475,67817.0,67802.0,0.45598404]
[1771656864881,0.014752,67808.0,67803.0,0.014752]
[1771656865067,0.014752,67807.0,67802.0,0.014753]
[1771656865974,0.014752,67807.0,67803.0,0.014753]
[1771656868174,0.014752,67808.0,67803.0,0.014753]
[1771656868764,0.014752,67807.0,67803.0,0.014753]
[1771656868971,0.014752,67806.0,67800.0,0.014753]
[1771656869165,0.014752,67807.0,67802.0,0.014753]
[1771656870975,0.014752,67806.0,67802.0,0.014753]
[1771656871674,0.014752,67807.0,67802.0,0.014753]
[1771656871883,0.034752,67807.0,67802.0,0.014753]
[1771656872584,0.02,67807.0,67804.0,0.014752]
[1771656876082,0.034752,67807.0,67803.0,0.014752]
[1771656876577,0.02,67807.0,67803.0,0.014752]
[1771656876786,0.02,67807.0,67804.0,0.014752]
[1771656877083,0.02,67807.0,67802.0,0.014753]
[1771656878580,0.02,67807.0,67804.0,0.014752]
[1771656883493,0.02,67807.0,67802.0,0.014753]
[1771656883789,0.02,67807.0,67803.0,0.014752]
[1771656887089,0.01475,67814.0,67798.0,0.25298392]
[1771656887393,0.01475,67817.0,67811.0,0.014751]
[1771656887584,0.0295,67817.0,67811.0,0.014751]
[1771656887889,0.01475,67816.0,67811.0,0.014751]
[1771656890491,0.01475,67817.0,67812.0,0.014751]
[1771656891188,0.01475,67816.0,67811.0,0.014751]
[1771656891591,0.01475,67817.0,67812.0,0.01475]
[1771656892490,0.01475,67816.0,67811.0,0.014751]
[1771656893794,0.01475,67817.0,67812.0,0.01475]
[1771656894194,0.01475,67816.0,67811.0,0.014751]
[1771656897592,0.01475,67815.0,67810.0,0.014751]
[1771656901001,0.014751,67813.0,67807.0,0.014751]
[1771656901294,0.014751,67813.0,67808.0,0.014751]
[1771656901999,0.014751,67813.0,67808.0,0.26391412]
[1771656903095,0.01475,67814.0,67808.0,0.27866512]
[1771656903396,0.014749,67819.0,67811.0,0.014751]
[1771656903789,0.01475,67817.0,67811.0,0.029502]
[1771656903992,0.014749,67818.0,67813.0,0.01475]
[1771656904191,0.014749,67818.0,67812.0,0.01475]
[1771656904390,0.01475,67817.0,67811.0,0.014751]
[1771656904593,0.01475,67816.0,67811.0,0.014751]
[1771656905501,0.01475,67817.0,67811.0,0.014751]
[1771656905897,0.01475,67816.0,67811.0,0.014751]
[1771656909293,0.014749,67820.0,67811.0,0.029502]
[1771656909496,0.01475,67817.0,67811.0,0.029502]
[1771656910899,0.01475,67817.0,67812.0,0.014751]
[1771656911701,0.01475,67816.0,67812.0,0.014751]
[1771656912597,0.01475,67817.0,67812.0,0.014751]
[1771656913102,0.01475,67817.0,67813.0,0.01475]
[1771656913307,0.014748,67822.0,67815.0,0.01475]
[1771656913606,0.014749,67819.0,67814.0,0.01475]
[1771656913904,0.014749,67818.0,67813.0,0.01475]
[1771656914905,0.014749,67821.0,67814.0,0.01475]
[1771656915103,0.014749,67819.0,67814.0,0.01475]
[1771656915803,0.014749,67818.0,67813.0,0.01475]
[1771656919800,0.014749,67822.0,67813.0,0.01475]
[1771656919998,0.014749,67818.0,67813.0,0.01475]
[1771656920401,0.014749,67818.0,67814.0,0.01475]
[1771656920705,0.01475,67817.0,67812.0,0.014751]
[1771656921805,0.01475,67816.0,67812.0,0.014751]
[1771656924011,0.01475,67816.0,67811.0,0.014751]
[1771656925509,0.01475,67815.0,67811.0,0.014751]
[1771656925711,0.01475,67816.0,67811.0,0.014751]
[1771656929010,0.014749,67818.0,67811.0,0.014751]
[1771656929209,0.01475,67816.0,67811.0,0.014751]
[1771656929410,0.01475,67816.0,67809.0,0.014751]
[1771656929711,0.01475,67816.0,67810.0,0.014751]
[1771656932612,0.01475,67815.0,67810.0,0.014751]
[1771656935216,0.01475,67816.0,67811.0,0.014751]
[1771656935409,0.01475,67816.0,67811.0,0.029502]
[1771656935809,0.01475,67816.0,67811.0,0.014751]
[1771656939318,0.0295,67816.0,67811.0,0.014751]
[1771656940415,0.01475,67816.0,67811.0,0.014751]
[1771656942514,0.01475,67816.0,67808.0,0.26391412]
[1771656942515,0.014751,67813.0,67808.0,0.02831612]
[1771656942711,0.029502,67813.0,67807.0,0.014752]
[1771656943721,0.014751,67812.0,67807.0,0.014752]
[1771656944120,0.014751,67812.0,67807.0,0.2639935]
[1771656946618,0.014751,67813.0,67807.0,0.2639935]
[1771656946619,0.014751,67813.0,67808.0,0.014751]
[1771656946818,0.014749,67819.0,67814.0,0.01475]
[1771656948623,0.014748,67824.0,67817.0,0.014749]
[1771656948815,0.014748,67823.0,67819.0,0.014749]
[1771656949013,0.014748,67824.0,67819.0,0.014749]
[1771656949213,0.014748,67824.0,67819.0,0.029498]
[1771656949413,0.014748,67824.0,67820.0,0.014749]
[1771656949616,0.029496,67824.0,67819.0,0.014749]
[1771656950716,0.014748,67824.0,67820.0,0.014749]
[1771656951022,0.029496,67824.0,67820.0,0.014749]
[1771656951920,0.014748,67824.0,67820.0,0.014749]
[1771656954031,0.014748,67823.0,67819.0,0.014749]
[1771656955520,0.014748,67823.0,67820.0,0.014749]
[1771656961029,0.014748,67823.0,67819.0,0.014749]
[1771656962731,0.014748,67823.0,67820.0,0.014749]
[1771656964131,0.014748,67823.0,67819.0,0.014749]
[1771656967932,0.014748,67822.0,67819.0,0.014749]
[1771656975237,0.014749,67821.0,67818.0,0.014749]
[1771656975436,0.014749,67821.0,67817.0,0.029498]
[1771656976128,0.029498,67821.0,67817.0,0.014749]
[1771656976328,0.014749,67820.0,67816.0,0.01475]
[1771656976728,0.014749,67821.0,67816.0,0.0295]
[1771656978831,0.014749,67821.0,67816.0,0.01475]
[1771656981938,0.014749,67821.0,67816.0,0.0295]
[1771656985938,0.014749,67821.0,67816.0,0.01475]
[1771656994954,0.014749,67821.0,67816.0,0.0295]
[1771656996046,0.014749,67820.0,67816.0,0.01475]
[1771656996251,0.014749,67820.0,67815.0,0.01475]
[1771656996654,0.014749,67821.0,67816.0,0.01475]
[1771657004260,0.014748,67822.0,67817.0,0.014749]
[1771657005958,0.014749,67821.0,67817.0,0.014749]
[1771657010758,0.014749,67821.0,67816.0,0.01475]
[1771657011565,0.014749,67821.0,67817.0,0.014749]
[1771657015164,0.014749,67821.0,67816.0,0.01475]
[1771657015564,0.014749,67821.0,67817.0,0.014749]
[1771657015864,0.014749,67821.0,67816.0,0.01475]
[1771657016654,0.014749,67821.0,67817.0,0.014749]
[1771657019660,0.014749,67821.0,67816.0,0.01475]
[1771657031479,0.014749,67820.0,67816.0,0.01475]
[1771657032178,0.014749,67820.0,67815.0,0.01475]
[1771657032481,0.014749,67820.0,67814.0,0.01475]
[1771657032482,0.014749,67818.0,67813.0,0.01475]
[1771657033478,0.014749,67818.0,67814.0,0.01475]
[1771657034480,0.014749,67819.0,67814.0,0.01475]
[1771657044197,0.014749,67820.0,67814.0,0.01475]
[1771657044386,0.014749,67821.0,67814.0,0.01475]
[1771657044697,0.014749,67820.0,67815.0,0.01475]
[1771657061304,0.014748,67826.0,67818.0,0.014749]
[1771657061305,0.014748,67824.0,67818.0,0.014749]
[1771657061511,0.014747,67828.0,67823.0,0.014748]
[1771657061707,0.014747,67828.0,67815.0,0.01475]
[1771657061708,0.014747,67828.0,67822.0,0.014748]
[1771657062205,0.014747,67827.0,67822.0,0.014748]
[1771657062400,0.014747,67828.0,67823.0,0.014748]
[1771657062711,0.014747,67828.0,67822.0,0.014748]
[1771657064710,0.014747,67828.0,67823.0,0.014748]
[1771657065705,0.014747,67830.0,67825.0,0.014748]
[1771657066409,0.014747,67829.0,67825.0,0.014748]
[1771657072519,0.014747,67830.0,67826.0,0.014747]
[1771657074520,0.014747,67829.0,67825.0,0.014748]
[1771657076918,0.014747,67829.0,67822.0,0.014748]
[1771657077119,0.014747,67829.0,67825.0,0.029496]
[1771657077521,0.014747,67830.0,67825.0,0.029496]
[1771657077722,0.014747,67829.0,67825.0,0.029496]
[1771657078929,0.014747,67829.0,67826.0,0.014748]
[1771657080824,0.014747,67828.0,67824.0,0.014748]
[1771657081027,0.014747,67829.0,67824.0,0.014748]
[1771657081229,0.014747,67829.0,67825.0,0.014748]
[1771657083229,0.014747,67829.0,67825.0,0.029496]
[1771657084131,0.014747,67829.0,67826.0,0.014747]
[1771657084432,0.014747,67830.0,67827.0,0.014747]
[1771657084627,0.014746,67831.0,67827.0,0.014747]
[1771657087230,0.014746,67831.0,67826.0,0.014748]
[1771657090534,0.014747,67830.0,67824.0,0.014748]
[1771657090733,0.014747,67829.0,67823.0,0.014748]
[1771657091631,0.029494,67829.0,67823.0,0.014748]
[1771657091831,0.014747,67828.0,67823.0,0.014748]
[1771657095235,0.014747,67829.0,67823.0,0.014748]
[1771657099835,0.014747,67829.0,67823.0,0.029496]
[1771657100230,0.014747,67829.0,67824.0,0.014748]
[1771657101439,0.014747,67830.0,67824.0,0.014748]
[1771657102036,0.014747,67829.0,67824.0,0.014748]
[1771657104340,0.014747,67829.0,67820.0,0.2654608]
[1771657104642,0.014747,67830.0,67824.0,0.014748]
[1771657107045,0.014747,67830.0,67824.0,0.015628]
[1771657107241,0.014747,67830.0,67824.0,0.014748]
[1771657110648,0.014747,67831.0,67825.0,0.014748]
[1771657112245,0.014747,67831.0,67825.0,0.029496]
[1771657113246,0.014747,67831.0,67825.0,0.014748]
[1771657113443,0.014747,67831.0,67825.0,0.029496]
[1771657113749,0.014746,67832.0,67826.0,0.014747]
[1771657114047,0.014746,67832.0,67825.0,0.014748]
[1771657114749,0.014746,67832.0,67826.0,0.014747]
[1771657115048,0.014746,67832.0,67826.0,0.029494]
[1771657115547,0.014746,67832.0,67827.0,0.014747]
[1771657123562,0.014746,67832.0,67821.0,0.014749]
[1771657123757,0.014746,67832.0,67827.0,0.029494]
[1771657123964,0.014746,67832.0,67827.0,0.014747]
[1771657125166,0.014746,67832.0,67828.0,0.014747]
[1771657125360,0.014746,67832.0,67827.0,0.014747]
[1771657126354,0.014746,67832.0,67828.0,0.014747]
[1771657126660,0.014746,67832.0,67827.0,0.014747]
[1771657126859,0.014746,67833.0,67828.0,0.014747]
[1771657127060,0.029492,67833.0,67828.0,0.014747]
[1771657127261,0.014746,67832.0,67828.0,0.014747]
[1771657134673,0.014746,67833.0,67828.0,0.014747]
[1771657137378,9.6e-07,67834.0,67831.0,0.014746]
[1771657140479,9.6e-07,67834.0,67830.0,0.029494]
[1771657140682,0.01474696,67834.0,67829.0,0.014747]
[1771657141580,9.6e-07,67834.0,67830.0,0.014747]
[1771657141778,9.6e-07,67834.0,67831.0,0.014746]
[1771657141978,9.6e-07,67834.0,67830.0,0.014747]
[1771657144086,9.6e-07,67834.0,67830.0,0.014746]
[1771657156594,9.6e-07,67834.0,67829.0,0.014747]
[1771657156893,0.01474696,67834.0,67829.0,0.014747]
[1771657157095,0.014746,67831.0,67827.0,0.014747]
[1771657157291,0.014746,67832.0,67826.0,0.014747]
[1771657158083,0.014746,67832.0,67827.0,0.014747]
[1771657172016,0.014746,67832.0,67827.0,0.029494]
[1771657177216,0.014746,67833.0,67828.0,0.014747]
[1771657181618,0.014746,67833.0,67827.0,0.014747]
[1771657181814,0.014746,67831.0,67825.0,0.014748]
[1771657182415,0.014746,67831.0,67826.0,0.014747]
[1771657183325,0.014747,67830.0,67825.0,0.014748]
[1771657183922,0.014746,67831.0,67825.0,0.014748]
[1771657184112,0.014746,67831.0,67826.0,0.014747]
[1771657190924,0.014746,67832.0,67826.0,0.014747]
[1771657191120,0.014746,67832.0,67827.0,0.014747]
[1771657193834,0.029492,67832.0,67827.0,0.014747]
[1771657194835,0.014746,67832.0,67827.0,0.014747]
[1771657200240,0.014746,67831.0,67827.0,0.014747]
[1771657200840,0.014746,67832.0,67827.0,0.014747]
[1771657202142,0.014746,67831.0,67827.0,0.014747]
[1771657202534,0.014746,67832.0,67828.0,0.014747]
[1771657203140,0.01474696,67834.0,67830.0,0.014747]
[1771657203642,0.014746,67833.0,67829.0,0.014747]
[1771657204240,0.014746,67833.0,67829.0,0.029494]
[1771657204441,0.02949296,67834.0,67830.0,0.014747]
[1771657204643,0.014746,67833.0,67830.0,0.014747]
[1771657205345,0.014746,67833.0,67829.0,0.014747]
[1771657205543,0.014747,67831.0,67827.0,0.014747]
[1771657205745,0.014747,67831.0,67828.0,0.014747]
[1771657205941,0.014746,67832.0,67828.0,0.014747]
[1771657209646,0.029492,67832.0,67828.0,0.014747]
[1771657211746,0.014747,67831.0,67828.0,0.014747]
[1771657223457,0.014747,67831.0,67827.0,0.014747]
[1771657224768,0.029494,67831.0,67827.0,0.014747]
[1771657225169,0.014747,67831.0,67827.0,0.014747]
[1771657226770,0.014747,67831.0,67826.0,0.014748]
[1771657227568,0.014747,67831.0,67827.0,0.014747]
[1771657234776,0.014747,67830.0,67825.0,0.014748]
[1771657234965,0.014747,67830.0,67826.0,0.029494]